Cogmind - Beta 16 --- EXPLORER MODE // 2026.01.06 @ 14:42:13 Player: K.K.Y. Result: Destroyed by R4-PS4(R) with Subdweller Beam Cannon Performance ------------- Evolutions (0) 0 Regions Visited (3) 600 Robots Destroyed (43) 215 Value Destroyed (819) 819 Prototype IDs (17) 340 Alien Tech Used (0) 0 Bonus (-94) -94 TOTAL SCORE: 1880 Bonus ------- Follower Combat Kills 60 Friendly Fire -154 Cogmind --------- Core Integrity 0/250 Matter 281/300 Energy 117/200 System Corruption 0% Temperature Hot (213) Movement Treading (260) Ox1 Location -10/Subcaves Parts ------- > --- POWER (1) -------- Subdweller Power Source > --- PROPULSION (2) --- Spiked Treads > --- UTILITY (3) ------ Large Storage Unit Structural Scanner > --- WEAPON (2) ------- Barrage Gun > --- INVENTORY (15) --- Medium Storage Unit High-capacity Storage Unit Huge Storage Unit Light Humpback Humpback Experimental Sensor Array Mining Laser Multitool Enhanced Flamer Peak State ------------ > --- POWER ------------ Ion Engine > --- PROPULSION ------- Light Treads Spiked Treads > --- UTILITY ---------- Medium Storage Unit Large Storage Unit Structural Scanner > --- WEAPON ----------- Autobeam Mining Laser > --- INVENTORY -------- High-capacity Storage Unit Huge Storage Unit Humpback Experimental Sensor Array Barrage Gun Multitool Enhanced Flamer [Rating: 12] Favorites ----------- Power Ion Engine Engine Ion Engine Propulsion Light Treads Treads Light Treads Utility Light Armor Plating Device Structural Scanner Storage Medium Storage Unit Protection Light Armor Plating Weapon Medium Laser Energy Gun Medium Laser Ballistic Gun Barrage Gun Special Weapon Mining Laser Build | -11 -10 -10 -10 ------- Run | Yrd Mat Min Sub Slots Evolved 1 | . 1 . . Power . | . . . . Propulsion . | . . . . Utility 1 | . 1 . . Weapon . | . . . . Parts Attached 19 | 6 3 2 8 Power 4 | 1 1 1 1 Engine 4 | 1 1 1 1 Core . | . . . . Reactor . | . . . . Propulsion 3 | 2 . . 1 Treads 3 | 2 . . 1 Leg . | . . . . Wheel . | . . . . Hover . | . . . . Flight . | . . . . Utility 6 | 2 1 1 2 Device 1 | . 1 . . Storage 2 | . . 1 1 Processor . | . . . . Hackware . | . . . . Protection 3 | 2 . . 1 Artifact . | . . . . Weapon 6 | 1 1 . 4 Energy Gun 4 | 1 1 . 2 Energy Cannon . | . . . . Ballistic Gun 1 | . . . 1 Ballistic Cannon . | . . . . Launcher . | . . . . Special Weapon 1 | . . . 1 Impact Weapon . | . . . . Slashing Weapon . | . . . . Piercing Weapon . | . . . . Special Melee Weapon . | . . . . Unidentified Prototypes . | . . . . Parts Lost 9 | . . . 9 Power 1 | . . . 1 Propulsion 2 | . . . 2 Utility 2 | . . . 2 Weapon 4 | . . . 4 Highest Loss Streak 5 | . . . 5 To Critical Strikes . | . . . . Average Backups 5 | 1 4 5 7 Power . | . . . . Propulsion . | . . . . Utility 4 | 1 3 3 4 Weapon 1 | . 1 1 2 Tool/Special . | . . . . Unused Backups 8 | . 1 . 7 Power . | . . . . Propulsion . | . . . . Utility 6 | . 1 . 5 Weapon 1 | . . . 1 Tool/Special 1 | . . . 1 Average Slot Usage (%) 92 | . 92 100 88 Engine 11 | . 12 12 11 Treads 22 | . 25 25 19 Device 11 | . 11 12 12 Storage 6 | . . 9 12 Protection 15 | . 25 14 6 Energy Gun 20 | . 18 25 20 Special Weapon 1 | . . . 3 Peak Build Rating 12 | 6 8 9 12 Average Rating 8 | 5 7 8 8 On Entrance 5 | . 6 8 9 Avg Prop Armor Cover (%) . | . . . . Naked Turns . | . . . . Heaviest Build 35 | 11 15 22 35 Greatest Support 40 | 40 40 40 40 Greatest Overweight (x) 1 | 1 . . 1 Average Overweight (x) . | . . . . Largest Inventory Capacity 15 | 5 5 10 15 Average Capacity 7 | 5 5 9 10 Most Carried 13 | 4 5 6 13 Average Carried 5 | 1 4 5 7 Final Capacity 15 | 5 5 10 15 Final Carried 11 | 3 5 6 11 Class Distribution -------------------- 100% | Hacker-Mutant Dominant Class ---------------- Hacker-Mutant | -10/Materials Hacker-Mutant | -10/Mines Hacker-Mutant | -10/Subcaves Resources | -11 -10 -10 -10 ----------- Run | Yrd Mat Min Sub Matter Collected 380 | 169 121 20 70 Remotely . | . . . . Salvage Created 1377 | 166 532 224 455 Parts 76 | 9 37 9 21 Haulers Intercepted 2 | . 2 . . Recyclers Shooed 5 | . 5 . . Parts Field Recycled . | . . . . Retrieved Matter . | . . . . Parts Self-Destructed . | . . . . Prevented . | . . . . Parts Restored . | . . . . Kills | -11 -10 -10 -10 ------- Run | Yrd Mat Min Sub Combat Hostiles Destroyed 21 | . 8 2 11 Guns 21 | . 8 2 11 Classes Destroyed 13 | 2 6 . 5 Builder 3 | . 3 . . Tunneler 6 | 3 1 2 . Hauler 2 | . 2 . . Recycler 3 | 1 1 1 . Mechanic 1 | . 1 . . Turret 2 | . . . 2 Watcher 3 | . 3 . . Swarmer 7 | . 4 . 3 Grunt 7 | . 4 2 1 Sentry 1 | . . . 1 Artisan 1 | . . . 1 Subdweller 6 | . . . 6 Zionite 2 | . . . 2 Best Kill Streak 5 | 4 4 2 5 Combat Bots Only 3 | . 2 2 3 Max Kills in Single Turn 2 | 1 1 1 2 Gunslinging 1 | . . . 1 Exploded . | . . . . Melee . | . . . . Uniques/NPCs Destroyed . | . . . . Combat | -11 -10 -10 -10 -------- Run | Yrd Mat Min Sub Hostile Shots Fired 176 | . 32 13 131 Missed 60 | . 9 2 49 Hits 116 | . 23 11 82 Projectile 116 | . 23 11 82 Critical Strikes 2 | . 1 . 1 Damage Taken 1324 | . 178 97 1049 Core 258 | . 21 . 237 Absorbed by Shields . | . . . . Ignored by Resistances 808 | . 115 61 632 Core Remaining (%) 100 | 100 . . . Volleys Fired 176 | 12 69 18 77 Largest 2 | 1 2 2 2 Hottest 150 | 50 90 90 150 Shots Fired 270 | 12 80 36 142 Gun 251 | 12 80 36 123 Cannon . | . . . . Launcher . | . . . . Special 19 | . . . 19 Kinetic 1 | . . . 1 Thermal 269 | 12 80 36 141 Explosive . | . . . . Electromagnetic . | . . . . Robot Hit Streak 69 | 6 19 18 69 Robot Miss Streak 4 | 1 4 1 2 Penetration Max . | . . . . Secondary Targets 3 | . . 1 2 Max Gunslinging Chain 1 | . . 1 1 Autonomous 31 | . . . 31 Shots Hit Robots 227 | 10 70 30 117 Core Hits 85 | 5 29 10 41 Critical Kills . | . . . . Critical Parts Destroyed . | . . . . Critical Strikes 17 | 1 5 3 8 Burn 17 | 1 5 3 8 Melee Attacks . | . . . . Impact . | . . . . Slashing . | . . . . Piercing . | . . . . Sneak Attacks . | . . . . Combat Hostiles . | . . . . Follow-up Attacks . | . . . . Damage Inflicted 2820 | 124 868 356 1472 Guns 2772 | 124 868 356 1424 Cannons . | . . . . Explosions . | . . . . Melee . | . . . . Ramming . | . . . . Kinetic 13 | . . . 13 Thermal 2807 | 124 868 356 1459 Explosive . | . . . . Electromagnetic . | . . . . Impact . | . . . . Slashing . | . . . . Piercing . | . . . . Highest Corruption . | . . . . Average Corruption . | . . . . Corruption Purged . | . . . . Corruption Blocked . | . . . . Overload Shots . | . . . . Overflow Damage . | . . . . Projectiles . | . . . . Explosions . | . . . . Melee . | . . . . Knockbacks . | . . . . Impact . | . . . . Kinetic . | . . . . Secondary . | . . . . Self-Inflicted Damage . | . . . . Shots . | . . . . Rammed . | . . . . Targets Rammed . | . . . . Kicked . | . . . . Crushed . | . . . . Highest Temperature 351 | 132 306 340 351 Average Temperature 93 | 47 86 123 99 Received Heat Transfer 861 | . 117 87 657 Effects 3 | . . 2 1 Shutdowns 1 | . . 1 . Energy Bleed 2 | . . 1 1 Siege Activations . | . . . . Martial Activations . | . . . . Shielding Activations . | . . . . Robots Disrupted . | . . . . Combat Hostiles . | . . . . Robots Corrupted . | . . . . Combat Hostiles . | . . . . Parts Fried . | . . . . Impact Corruptions . | . . . . Robots Melted 2 | . 1 . 1 Combat Hostiles . | . . . . Parts Melted 13 | . 8 2 3 Heat Transferred 9211 | 444 2864 1164 4739 Parts Sabotaged . | . . . . Parts Stolen . | . . . . Parts Stripped . | . . . . Power Chain Reactions . | . . . . Alert | -11 -10 -10 -10 ------- Run | Yrd Mat Min Sub Maximum Alert Level . | . . . . Low Security (%) 100 | 100 100 100 . Level 1 . | . . . . Level 2 . | . . . . Level 3 . | . . . . Level 4 . | . . . . Level 5 . | . . . . High Security . | . . . . Max Security . | . . . . Peak Influence 65 | 10 65 50 . Initial . | . . . . Average 2 | 1 3 1 . Influence Increases 567 | 20 297 65 185 Destroy 0b10 Robot/C 340 | . 160 40 140 Destroy 0b10 Robot/NC 90 | 20 55 15 . Destroy Leader 50 | . 40 10 . Successful Hack 27 | . 27 . . Lose Combat Pursuer 60 | . 15 . 45 Influence Decreases 567 | 20 297 65 185 Time Decay 542 | 20 297 65 160 Lost Part 10 | . . . 10 Lost Ally 15 | . . . 15 Squads Dispatched . | . . . . Investigation . | . . . . Extermination . | . . . . Reinforcement . | . . . . Assault . | . . . . Garrison . | . . . . Intercept . | . . . . Searches Triggered . | . . . . Construction Impeded . | . . . . Haulers Reinforced . | . . . . Active Scanning Responses . | . . . . Cargo Convoy Interrupts . | . . . . Stealth | -11 -10 -10 -10 --------- Run | Yrd Mat Min Sub Distress Signals 1 | . 1 . . Communications Jammed . | . . . . Distress Signals . | . . . . Times Spotted 40 | . 19 2 19 Peak Tracking Total 6 | . 2 2 6 Tactical Retreats 3 | . 1 . 2 Traps | -11 -10 -10 -10 ------- Run | Yrd Mat Min Sub Traps Triggered 2 | . 1 . 1 Indirectly . | . . . . Trap Hack Attempts . | . . . . Triggered . | . . . . Disarmed 5 | . 5 . . Reprogrammed . | . . . . Reused . | . . . . Traps Extracted . | . . . . Installed . | . . . . Triggered . | . . . . Machines | -11 -10 -10 -10 ---------- Run | Yrd Mat Min Sub Machines Disabled 1 | . . . 1 Max in Single Turn . | . . . . Machines Repaired . | . . . . Machines Dismantled . | . . . . Machines Sabotaged . | . . . . Overloaded Fab Kills . | . . . . Hacking | -11 -10 -10 -10 --------- Run | Yrd Mat Min Sub Machines Accessed 7 | . 6 . 1 Terminals 5 | . 5 . . Fabricators . | . . . . Repair Stations . | . . . . Recycling Units 1 | . 1 . . Scanalyzers . | . . . . Garrison Access . | . . . . Total Hacks 13 | . 12 . 1 Successful 11 | . 10 . 1 Failed 2 | . 2 . . Catastrophic . | . . . . Database Lockouts . | . . . . Manual 10 | . 10 . . Terminals 11 | . 11 . . Fabricators . | . . . . Repair Stations . | . . . . Recycling Units 1 | . 1 . . Scanalyzers . | . . . . Garrison Access . | . . . . Terminal Hacks 5 | . 4 . 1 Prototype ID Bank 3 | . 3 . . Disarm Traps 1 | . 1 . . Proto ID Catalog 1 | . . . 1 Fabricator Hacks . | . . . . Repair Station Hacks . | . . . . Recycling Unit Hacks 1 | . 1 . . Retrieve Components 1 | . 1 . . Scanalyzer . | . . . . Garrison Access Hacks . | . . . . Unauthorized Hacks 5 | . 5 . . Terminals 5 | . 5 . . Botnet 5 | . 5 . . Fabricators . | . . . . Repair Stations . | . . . . Recycling Units . | . . . . Scanalyzers . | . . . . Garrison Access . | . . . . Data Cores Recovered . | . . . . Used . | . . . . Hacking Detections 5 | . 5 . . Full Trace Events . | . . . . Feedback Events . | . . . . Feedback Blocked . | . . . . Robot Schematics Acquired . | . . . . Robots Built . | . . . . Authchips . | . . . . Time . | . . . . Total Robot Build Rating . | . . . . Part Schematics Acquired . | . . . . Parts Built . | . . . . Authchips . | . . . . Time . | . . . . Total Part Build Rating . | . . . . Part Studies Acquired . | . . . . Parts Repaired . | . . . . Time . | . . . . Parts Recycled . | . . . . Recycled Matter . | . . . . Retrieved Matter . | . . . . Retrieved Components 2 | . 2 . . Parts Scanalyzed . | . . . . Part Schematics Acquired . | . . . . Parts Damaged . | . . . . Bothacking | -11 -10 -10 -10 ------------ Run | Yrd Mat Min Sub Used RIF Installer . | . . . . Robots Hacked . | . . . . Non-combat . | . . . . Combat . | . . . . Robot Hacks Applied . | . . . . Relay Couplers Released . | . . . . Fabnet Peak Effective % . | . . . . Robots Rewired . | . . . . Allies Hacked . | . . . . Hacks Repelled . | . . . . Allies | -11 -10 -10 -10 -------- Run | Yrd Mat Min Sub Total Allies 2 | . . 2 . Largest Group 2 | . . 2 2 Highest-Rated Group 44 | . . 44 44 Highest-Rated Ally 31 | . . 31 31 Total Orders . | . . . . Ally Attacks 18 | . . . 18 Total Damage 253 | . . . 253 Kills 2 | . . . 2 Allies Corrupted . | . . . . Allies Melted . | . . . . Intel | -11 -10 -10 -10 ------- Run | Yrd Mat Min Sub Active Infowar (turns) 5768 | . 2287 1154 2327 Structural 5768 | . 2287 1154 2327 Robot Analysis Total . | . . . . Derelict Logs Recovered 3 | . . 1 2 Drone Launches . | . . . . Drone Recoveries . | . . . . Exploration | -11 -10 -10 -10 ------------- Run | Yrd Mat Min Sub Turns Passed 6041 | 116 2444 1154 2327 Spaces Moved 2303 | 48 927 600 728 Core 13 | 13 . . . Treads 2290 | 35 927 600 728 Legs . | . . . . Wheels . | . . . . Hover . | . . . . Flight . | . . . . Fastest Speed 50 | 50 160 160 160 Average Speed 164 | 134 160 160 176 Slowest Speed 260 | 160 160 160 260 Overloaded Moves . | . . . . Propulsion Burnouts . | . . . . Robots Hopped . | . . . . Potential Cave-ins . | . . . . Cave-ins Triggered . | . . . . Exploration Rate (%) 64 | 5 98 98 56 Regions Visited 3 Branch Regions 2 Pre-discovered Areas 1 | . . . 1 Known Exits Taken 3 | 1 1 1 . Unknown Exits Taken . | . . . . Scrap Searched 8 | . . 1 7 Spaces Dug . | . . . . Terrain Destroyed . | . . . . Melee . | . . . . Projectile . | . . . . AOE . | . . . . Terrain Rammed . | . . . . Walls Destroyed . | . . . . Machines Disabled . | . . . . Actions | -11 -10 -10 -10 --------- Run | Yrd Mat Min Sub Total 4267 | 88 1809 761 1609 Wait 1738 | 14 804 136 784 Move 2300 | 47 926 599 728 Hop . | . . . . Pick Up 25 | 9 4 3 9 Fast Attach 2 | . 2 . . Attach 14 | 6 . 1 7 Detach 1 | . . . 1 Swap 5 | . 1 1 3 Drop 6 | . 3 3 . Fire 176 | 12 69 18 77 Melee . | . . . . Ram . | . . . . Kick . | . . . . Crush . | . . . . Escape Stasis . | . . . . Rewire . | . . . . Trap . | . . . . Miscellaneous . | . . . . Route ------- -11/Scrapyard -10/Materials (discovered 5 exits: *Mat x3 / *Min x2) -10/Mines (discovered 3 exits: *Mat x2 / *Sub) -10/Subcaves (discovered 3 exits: *Mat x2 / *Rec) History --------- Turn | Location | Event 8 | -11/Scrapyard | Identified exit to Materials 8 | -11/Scrapyard | Discovered exit to Materials (range 15) 117 | -11/Scrapyard | Entered Materials 117 | -10/Materials | Evolved 1 slot: Utility x1 187 | -10/Materials | Identified exit to Mines 187 | -10/Materials | Discovered exit to Mines (range 13) 300 | -10/Materials | Build established: Hacker-Mutant 434 | -10/Materials | Identified exit to Materials 434 | -10/Materials | Discovered exit to Materials (range 5) 828 | -10/Materials | Discovered exit to Mines (range 8) 1433 | -10/Materials | Discovered exit to Materials (range 16) 2256 | -10/Materials | Discovered exit to Materials (range 3) 2561 | -10/Materials | Entered Mines 2644 | -10/Mines | A weapon hastily lodged in a ceiling crevice suddenly fell to the ground 2794 | -10/Mines | Learned Materials emergency access door positions 2882 | -10/Mines | Identified exit to Subcaves 2882 | -10/Mines | Discovered exit to Subcaves (range 9) 3021 | -10/Mines | Discovered exit to Materials (range 15) 3337 | -10/Mines | Discovered exit to Materials (range 5) 3387 | -10/Mines | Found a damaged Exp. Sensor Array with a note attached 3390 | -10/Mines | Found Prototype Device 3715 | -10/Mines | Entered Subcaves 3715 | -10/Subcaves | Accompanied by 2 allies 3716 | -10/Subcaves | Approached by a straggling Scientist 3720 | -10/Subcaves | Led the pair of lost Derelicts to an unsafe place 3745 | -10/Subcaves | Identified exit to Materials 4122 | -10/Subcaves | Shifting Twisted Machinery released Shrapnel Trap 4520 | -10/Subcaves | Shifting Twisted Machinery released Sub. Monowheel 4650 | -10/Subcaves | Identified exit to Recycling 4650 | -10/Subcaves | Discovered exit to Recycling (range 14) 4972 | -10/Subcaves | Learned location of Zion (-6) 4972 | -10/Subcaves | Met a Zionite searching for "candidates" 5094 | -10/Subcaves | Visited 4L-MR0's lab 5329 | -10/Subcaves | Core integrity fell below 50% 5439 | -10/Subcaves | Disturbed a concealed Subdweller 5517 | -10/Subcaves | Shifting Twisted Machinery released Spk. Treads 5607 | -10/Subcaves | A swath of the cavern ceiling suddenly collapsed 5679 | -10/Subcaves | Shifting Twisted Machinery released Lgt. Humpback 5684 | -10/Subcaves | Discovered exit to Materials (range 5) 5716 | -10/Subcaves | Shifting Twisted Machinery released Battle Cannon 6033 | -10/Subcaves | Core integrity fell below 20% 6042 | -10/Subcaves | Destroyed by R4-PS4(R) with Subdweller Beam Cannon Last Messages --------------- 05916_ G-34 Mercenary destroyed. 05924_ Y-45 Defender destroyed. 05937_ Acquired 20 matter. 05940_ Acquired Lgt. Armor Plating. 05944_ Acquired Beam Rifle. 05945_ Acquired 10 matter. 05999_ Lgt. Treads destroyed. 06003_ Ion Engine destroyed. 06003_ Z1-UFD(R) destroyed. 06010_ R4-PS4(R) affixes Scrap Shield Fragment to Scrap Shield. 06020_ 18-RMO(R) affixes Scrap Shield Fragment to Scrap Shield. 06023_ Lgt. Armor Plating destroyed. 06026_ Critical hit (Meltdown: +180). 06027_ Acquired Sub. Power Source. 06028_ Autobeam destroyed. 06030_ Overheating: Energy bleed (-5). 06035_ 18-RMO(R) suffers critical hit (Burn). 06039_ Beam Rifle destroyed. Map ----- +----------------------------------------------------+ | #### ######### ##??????????????????????????? | | ?## ######## ###??????????????????????????? | | ?## ###### # ##???????????????????????????? | | ?### #### ??????????????????????????????? | | ?## ### # ???????????????????????????????? | | ?## # ###???????????????????????????????? | | ?## ##???????????????????????????????? | | ?##### # ###????????????"??????????????????? | | ?######## ##???????????? """##?????????????? | | ????#### ##???????????? """##?????????????? | | ??????### ###???????????? ##?????????????? | | ??????### ###??????????# ##?????????????? | | ??????### ####???? ##??## ???????????????? | | ??????## #######? ##??# ????????????????? | | ?????### # #### ##??## #???????????????? | | ?????### ###### ##???????????????? | | ?????## # ## ####### ##???????????????? | | ?????## #####?##### ##???????????????? | | ????###" ""###???### ##???????????????? | | ???####" "###???## ##???????????????? | | ???### "##???## ##???????????????? | | ???## ##???## ##???????????????? | | ???## ###???## ###???????????????? | | ???## ^ "######## ####??????????????? | | ???### ^ ############ RR#####?????????????? | | ???### "" ####### ### @ ####????????????? | | ###?## ###### ###????????????? | | ###?#### ### ##????????????? | | ##?#### ## ##????????????? | | ###???## ### ##????????????? | | ####### #### ###????????????? | | ####### %##### ###????????????? | | &# ####^ ###### ##; ##????????????? | | ### ###?#### #### ###????????????? | | ####??### #### ###????????????? | | ##### #####??### ### ###????????????? | | *###### ### ??#### ##????????????? | | &% ## ### ##????????????? | | ## %!%* ##????????????? | | ###????????????? | | ! ### ## ###????????????? | | % #### ^ #### ##?????????????? | | ######## ### ### ##?????????????? | | #########^ ##### #### ##?????????????? | | ##????#### ###### ## ##?????????????? | | ????????######### ##?????????????? | | ?????????###### ## ##?????????????? | | ?????????????# ## ##?????????????? | | ????????????? ## ###????????????? | | ????????????? ## ###????????????? | +----------------------------------------------------+ Best States ------------- Heat Dissipation 25 Energy Generation 15 Energy Capacity 250 Matter Stores 300 Matter Capacity 300 Sight Range 16 Terrain Scan Density 10 Armor Coverage 300 Resistance: KI 35 Resistance: TH 35 Resistance: EX 35 Resistance: EM 35 Resistance: I 35 Resistance: S 35 Resistance: P 35 Evasion (%) 50 Recoil Reduction 2 Offensive Hacking 20 Item Schematics ----------------- None Robot Schematics ------------------ None Fabricated ------------ Nothing Repaired ---------- Nothing Studied --------- None Alien Tech Used ----------------- None Achievements -------------- None Challenges ------------ None Game ------ Seed RemoteFissionDerivative Manual? 0 Play Time 00:23:20 Cumulative 253.7 hours Start 2026.01.06 @ 14:00:49 End 2026.01.06 @ 14:42:13 Sessions 1 Manual Loads 0 Difficulty Explorer Special Mode None Game No. 400 Rogue 0 Adventurer 0 Explorer 400 Win Type - Total 0 Types 0/0/0/0/0/0/0/0/0/0 Lore% 72 Gallery% 69 Achievement% 54 Wizard Run 0 Options --------- Layout 1 ASCII 0 Keyboard 0 Movement Mouse Keybinds 0 Fullscreen 1 Font 24/Smallcaps Map View 50x35 Zoom Use 0% Tactical HUD 1 Map Filters NONE Filters NONE Steam 1 RUN: 0fb72231-2c9e-4a1d-a97a-53c18ed2cac1